[Event "XII Cracow ICC-A 2024"]
[Site "Krakow"]
[Date "2024.06.26"]
[Round "6.21"]
[White "Vincenti, Leonardo"]
[Black "Cieslak, Patryk"]
[Result "0-1"]
[ECO "B40"]
[WhiteElo "2166"]
[BlackElo "2358"]
[Annotator "RC"]
[PlyCount "54"]
[EventDate "2024.06.20"]
[EventType "swiss"]
[EventCountry "POL"]
[SourceTitle "playchess.com"]
[Source "ChessBase"]
[SourceQuality "1"]
[TimeControl "40/5400+30:1800+30"]

1. e4 {[%emt 0:00:01]} c5 {[%emt 0:00:03]} 2. Nf3 {[%emt 0:00:04]} e6 {[%emt 0:00:02]} 3. c3 {[%emt 0:00:21]} Nf6 {[%emt 0:11:51]} 4. e5 {[%emt 0:00:10]} Nd5 {[%emt 0:00:06]} 5. d4 {[%emt 0:00:08]} cxd4 {[%emt 0:01:09]} 6. cxd4 {[%emt 0:00:11]} d6 {[%emt 0:04:17]} 7. Bc4 {[%emt 0:01:44]} Nc6 {[%emt 0:09:36]} 8. O-O {[%emt 0:02:06]} Be7 {[%emt 0:01:00]} 9. a3 {[%emt 0:02:14]} O-O {[%emt 0:03:22]} 10. Qe2 {[%emt 0:00:16]} Bd7 {[%emt 0:03:18]} 11. Qe4 {[%emt 0:12:09]} Na5 {[%emt 0:15:29]} 12. Bd3 {[%emt 0:11:56]} f5 {[%emt 0:02:06]} 13. exf6 {[%emt 0:00:13]} Nxf6 {[%emt 0:00:02]} 14. Qh4 {[%emt 0:01:23]} Nb3 {[%emt 0:03:06]} 15. Bg5 {[%emt 0:08:27]} Nxa1 {[%emt 0:09:01]} 16. Bxf6 {[%emt 0:03:53]} Bxf6 {[%emt 0:03:09]} 17. Qxh7+ {[%emt 0:00:04]} Kf7 {[%emt 0:00:05]} 18. Nbd2 {[%emt 0:01:41]} Rh8 {[%emt 0:06:12]} 19. Qg6+ {[%emt 0:05:22]} Kg8 {[%emt 0:00:38]} 20. Rxa1 {[%emt 0:01:25]} Rh6 {[%emt 0:01:03]} 21. Qg3 {[%emt 0:01:49]} Bc6 {[%emt 0:04:13]} 22. Re1 {[%emt 0:17:36]} Qd7 {[%emt 0:01:33]} 23. Ne4 {[%emt 0:03:46]} Rf8 {[%emt 0:01:39]} 24. Nfg5 {[%emt 0:01:32]} Bxd4 {[%emt 0:01:46]} 25. Re2 {[%emt 0:00:01]} Be5 {[%emt 0:00:31]} 26. Qg4 {[%emt 0:00:30]} Rf4 {[%emt 0:00:30]} 27. Qg3 {[%emt 0:00:50]} Rxe4 {[%emt 0:00:23]} 0-1

[Event "XII Cracow ICC-A 2024"]
[Site "Krakow"]
[Date "2024.06.26"]
[Round "6.22"]
[White "Oksendal, Martin"]
[Black "Nandhidhaa, P V"]
[Result "1/2-1/2"]
[ECO "C11"]
[WhiteElo "2264"]
[BlackElo "2344"]
[Annotator "RC"]
[PlyCount "239"]
[EventDate "2024.06.20"]
[EventType "swiss"]
[EventCountry "POL"]
[SourceTitle "playchess.com"]
[Source "ChessBase"]
[SourceQuality "1"]
[TimeControl "40/5400+30:1800+30"]

1. e4 {[%emt 0:03:13]} e6 {[%emt 0:00:04]} 2. d4 {[%emt 0:00:10]} d5 {[%emt 0:00:05]} 3. Nc3 {[%emt 0:00:12]} Nf6 {[%emt 0:00:06]} 4. e5 {[%emt 0:00:08]} Nfd7 {[%emt 0:00:09]} 5. f4 {[%emt 0:00:03]} c5 {[%emt 0:00:09]} 6. Nf3 {[%emt 0:00:04]} Nc6 {[%emt 0:00:06]} 7. Be3 {[%emt 0:00:04]} Be7 {[%emt 0:00:10]} 8. Qd2 {[%emt 0:00:05]} a6 {[%emt 0:00:24]} 9. Bd3 {[%emt 0:01:03]} b5 {[%emt 0:01:36]} 10. Qf2 {[%emt 0:00:36]} b4 {[%emt 0:12:20]} 11. Na4 {[%emt 0:00:22]} c4 {[%emt 0:00:33]} 12. Be2 {[%emt 0:00:07]} Nb6 {[%emt 0:00:37]} 13. Nc5 {[%emt 0:00:35]} Nd7 {[%emt 0:01:20]} 14. Na4 {[%emt 0:00:47]} Nb6 {[%emt 0:00:17]} 15. Nc5 {[%emt 0:00:07]} Nd7 {[%emt 0:04:03]} 16. Nxd7 {[%emt 0:28:47]} Bxd7 {[%emt 0:00:25]} 17. O-O {[%emt 0:00:01]} O-O {[%emt 0:01:33]} 18. h4 {[%emt 0:02:48]} f6 {[%emt 0:04:29]} 19. exf6 {[%emt 0:07:52]} Rxf6 {[%emt 0:02:54]} 20. h5 {[%emt 0:05:42]} Bd6 {[%emt 0:08:17]} 21. Qg3 {[%emt 0:06:09]} Ne7 {[%emt 0:06:48]} 22. Ne5 {[%emt 0:10:35]} Nf5 {[%emt 0:01:11]} 23. Qh3 {[%emt 0:01:06]} Nxe3 {[%emt 0:10:07]} 24. Qxe3 {[%emt 0:01:16]} Bc8 {[%emt 0:02:51]} 25. g4 {[%emt 0:05:13]} Rf8 {[%emt 0:04:13]} 26. g5 {[%emt 0:02:31]} Qc7 {[%emt 0:00:41]} 27. Bg4 {[%emt 0:01:16]} c3 {[%emt 0:04:15]} 28. bxc3 {[%emt 0:09:17]} Qxc3 {[%emt 0:01:24]} 29. Qxc3 {[%emt 0:01:17]} bxc3 {[%emt 0:00:29]} 30. Rab1 {[%emt 0:02:57]} Rb8 {[%emt 0:02:34]} 31. Rxb8 {[%emt 0:00:38]} Bxb8 {[%emt 0:00:02]} 32. Rf3 {[%emt 0:03:47]} Bxe5 {[%emt 0:05:53]} 33. fxe5 {[%emt 0:00:20]} Rxf3 {[%emt 0:00:34]} 34. Bxf3 Bd7 {[%emt 0:00:56]} 35. Kf2 {[%emt 0:01:57]} Ba4 {[%emt 0:03:29]} 36. Bd1 {[%emt 0:00:19]} Kf7 {[%emt 0:01:05]} 37. Ke3 {[%emt 0:00:08]} Bb5 {[%emt 0:00:06]} 38. Be2 {[%emt 0:01:38]} Ba4 {[%emt 0:00:38]} 39. Bd3 {[%emt 0:00:48]} h6 {[%emt 0:00:29]} 40. gxh6 gxh6 {[%emt 0:00:05]} 41. Bg6+ {[%emt 0:32:05]} Ke7 {[%emt 0:31:01]} 42. Kd3 {[%emt 0:00:56]} a5 {[%emt 0:01:26]} 43. Kxc3 {[%emt 0:00:13]} Kd7 {[%emt 0:00:43]} 44. Bd3 {[%emt 0:04:09]} Ke7 {[%emt 0:03:44]} 45. Be2 {[%emt 0:00:00]} Kf8 {[%emt 0:00:00]} 46. Kb2 {[%emt 0:00:00]} Ke7 {[%emt 0:00:00]} 47. a3 {[%emt 0:00:00]} Kf7 {[%emt 0:00:00]} 48. Kc1 {[%emt 0:00:00]} Ke7 {[%emt 0:00:00]} 49. Kd2 {[%emt 0:00:00]} Be8 {[%emt 0:00:00]} 50. c4 {[%emt 0:00:00]} dxc4 {[%emt 0:00:00]} 51. Kc3 {[%emt 0:00:00]} Bb5 {[%emt 0:00:00]} 52. Bxc4 {[%emt 0:00:00]} Bc6 {[%emt 0:00:00]} 53. Be2 {[%emt 0:00:00]} Bd5 {[%emt 0:00:00]} 54. Kd3 {[%emt 0:00:00]} Kf7 {[%emt 0:00:00]} 55. Ke3 {[%emt 0:00:00]} Ke7 {[%emt 0:00:00]} 56. Bf3 {[%emt 0:00:00]} Bc4 {[%emt 0:00:00]} 57. Kd2 {[%emt 0:00:00]} Kf7 {[%emt 0:00:00]} 58. Kc3 {[%emt 0:00:00]} Ba2 {[%emt 0:00:00]} 59. Kb2 {[%emt 0:00:00]} Bc4 {[%emt 0:00:00]} 60. Kc3 {[%emt 0:00:00]} Ba2 {[%emt 0:00:00]} 61. Kd2 {[%emt 0:01:38]} Bc4 {[%emt 0:00:00]} 62. Be4 {[%emt 0:00:50]} Ke7 {[%emt 0:00:00]} 63. Kc3 {[%emt 0:00:33]} Ba2 {[%emt 0:00:00]} 64. Bb7 {[%emt 0:01:52]} Kf7 {[%emt 0:00:00]} 65. Kb2 {[%emt 0:00:10]} Bc4 {[%emt 0:00:00]} 66. Be4 {[%emt 0:00:22]} Ke7 {[%emt 0:00:00]} 67. Bg6 {[%emt 0:00:11]} Bd5 {[%emt 0:00:00]} 68. Kc3 {[%emt 0:00:19]} Ba2 {[%emt 0:00:00]} 69. Bd3 {[%emt 0:00:32]} Bd5 {[%emt 0:00:00]} 70. Be2 {[%emt 0:00:08]} Kf7 {[%emt 0:00:00]} 71. Bg4 {[%emt 0:01:35]} Ke7 {[%emt 0:00:00]} 72. Bd1 {[%emt 0:00:13]} Kf7 {[%emt 0:00:00]} 73. Be2 {[%emt 0:01:56]} Ke7 {[%emt 0:00:00]} 74. Kd2 {[%emt 0:00:41]} Kf7 {[%emt 0:00:51]} 75. Ke1 {[%emt 0:00:55]} Ke7 {[%emt 0:00:27]} 76. Kf2 {[%emt 0:00:01]} Kf7 {[%emt 0:00:37]} 77. Kg3 {[%emt 0:00:05]} Ke7 {[%emt 0:00:14]} 78. Kf4 {[%emt 0:00:03]} Bb3 {[%emt 0:01:48]} 79. Bf3 {[%emt 0:00:15]} Bc4 {[%emt 0:00:40]} 80. Ke3 {[%emt 0:00:08]} Kf7 {[%emt 0:02:14]} 81. d5 {[%emt 0:00:42]} exd5 {[%emt 0:00:13]} 82. Kd4 {[%emt 0:00:06]} Ke6 {[%emt 0:00:14]} 83. Bg4+ {[%emt 0:00:02]} Ke7 {[%emt 0:00:11]} 84. Kc5 {[%emt 0:00:22]} Bb3 {[%emt 0:02:18]} 85. Kb5 {[%emt 0:01:17]} a4 {[%emt 0:00:22]} 86. Kc5 {[%emt 0:00:05]} Bc4 {[%emt 0:01:03]} 87. Kd4 {[%emt 0:00:39]} Bb3 {[%emt 0:00:24]} 88. Bf3 {[%emt 0:01:06]} Ke6 {[%emt 0:01:00]} 89. Be2 {[%emt 0:00:35]} Ke7 {[%emt 0:01:52]} 90. Bb5 {[%emt 0:00:17]} Bd1 91. Kxd5 {[%emt 0:00:12]} Bxh5 {[%emt 0:02:48]} 92. Bxa4 {[%emt 0:00:10]} Bf3+ {[%emt 0:00:21]} 93. Kd4 {[%emt 0:00:02]} h5 {[%emt 0:00:44]} 94. Ke3 {[%emt 0:00:56]} Bd5 {[%emt 0:01:10]} 95. Bd1 {[%emt 0:01:09]} h4 {[%emt 0:00:28]} 96. Bg4 {[%emt 0:00:06]} Be6 {[%emt 0:01:48]} 97. Bf3 {[%emt 0:00:21]} Bd7 {[%emt 0:00:25]} 98. Kf4 {[%emt 0:01:34]} h3 {[%emt 0:01:41]} 99. Kg3 {[%emt 0:00:19]} Bf5 {[%emt 0:01:52]} 100. Bd5 {[%emt 0:02:11]} Be6 {[%emt 0:00:49]} 101. Bf3 {[%emt 0:00:47]} Bf5 {[%emt 0:00:22]} 102. a4 {[%emt 0:01:44]} h2 {[%emt 0:03:00]} 103. a5 {[%emt 0:00:43]} Bd3 {[%emt 0:00:05]} 104. Kf4 {[%emt 0:01:18]} Be2 {[%emt 0:00:12]} 105. Bh1 {[%emt 0:00:25]} Ke6 {[%emt 0:00:24]} 106. Ke3 {[%emt 0:00:04]} Ba6 {[%emt 0:01:03]} 107. Kd4 {[%emt 0:00:04]} Ke7 {[%emt 0:00:32]} 108. Bd5 {[%emt 0:00:23]} Be2 {[%emt 0:00:37]} 109. Kc5 {[%emt 0:01:09]} Bf1 {[%emt 0:00:19]} 110. Kd4 {[%emt 0:01:11]} Ba6 {[%emt 0:00:12]} 111. Ke3 {[%emt 0:00:07]} Bc4 {[%emt 0:00:16]} 112. Bf3 {[%emt 0:00:40]} Ke6 {[%emt 0:00:20]} 113. Kd4 {[%emt 0:00:26]} Ba6 {[%emt 0:00:22]} 114. Bd5+ {[%emt 0:00:04]} Ke7 {[%emt 0:00:09]} 115. Kc5 {[%emt 0:00:23]} Bf1 {[%emt 0:00:28]} 116. Kd4 {[%emt 0:00:38]} Ba6 {[%emt 0:00:21]} 117. Ke3 {[%emt 0:00:04]} Bc4 {[%emt 0:00:18]} 118. Bb7 {[%emt 0:00:13]} Ba6 {[%emt 0:00:25]} 119. Bh1 {[%emt 0:00:08]} Ke6 {[%emt 0:01:01]} 120. Ke4 1/2-1/2

[Event "XII Cracow ICC-A 2024"]
[Site "Krakow"]
[Date "2024.06.26"]
[Round "6.23"]
[White "Suder, Jakub"]
[Black "Damen, Jip"]
[Result "1/2-1/2"]
[ECO "E20"]
[WhiteElo "2328"]
[BlackElo "2259"]
[Annotator "RC"]
[PlyCount "63"]
[EventDate "2024.06.20"]
[EventType "swiss"]
[EventCountry "POL"]
[SourceTitle "playchess.com"]
[Source "ChessBase"]
[SourceQuality "1"]
[TimeControl "40/5400+30:1800+30"]

1. d4 {[%emt 0:01:24]} Nf6 {[%emt 0:00:16]} 2. c4 {[%emt 0:00:05]} e6 {[%emt 0:00:04]} 3. Nc3 {[%emt 0:00:04]} Bb4 {[%emt 0:00:05]} 4. f3 {[%emt 0:00:04]} c5 {[%emt 0:00:07]} 5. d5 {[%emt 0:00:18]} O-O {[%emt 0:00:08]} 6. e4 {[%emt 0:00:04]} b5 {[%emt 0:00:08]} 7. Nh3 {[%emt 0:01:49]} bxc4 {[%emt 0:00:06]} 8. Nf4 {[%emt 0:04:28]} Ba6 {[%emt 0:08:06]} 9. Kf2 {[%emt 0:07:39]} exd5 {[%emt 0:04:53]} 10. Nfxd5 {[%emt 0:04:25]} Nc6 {[%emt 0:00:29]} 11. Bf4 {[%emt 0:04:25]} Bxc3 {[%emt 0:20:45]} 12. bxc3 {[%emt 0:00:34]} Nxd5 {[%emt 0:05:50]} 13. exd5 {[%emt 0:05:19]} Qf6 {[%emt 0:02:40]} 14. dxc6 {[%emt 0:05:14]} Qxf4 {[%emt 0:00:07]} 15. cxd7 {[%emt 0:01:43]} Qf6 {[%emt 0:04:40]} 16. Be2 {[%emt 0:05:25]} Bb5 {[%emt 0:05:15]} 17. Qd5 {[%emt 0:02:23]} Qe7 {[%emt 0:10:50]} 18. Rhe1 {[%emt 0:13:05]} Bxd7 {[%emt 0:04:59]} 19. Qxc4 {[%emt 0:01:58]} Be6 {[%emt 0:00:55]} 20. Qf4 {[%emt 0:01:10]} Rab8 {[%emt 0:02:33]} 21. Bc4 {[%emt 0:02:07]} Rb2+ {[%emt 0:04:02]} 22. Kg1 {[%emt 0:01:54]} Qd7 {[%emt 0:02:51]} 23. Bxe6 {[%emt 0:02:53]} fxe6 {[%emt 0:00:06]} 24. Qe3 {[%emt 0:02:49]} Qd2 {[%emt 0:05:12]} 25. Qxe6+ {[%emt 0:03:49]} Kh8 {[%emt 0:00:16]} 26. Qg4 {[%emt 0:00:22]} Rxa2 {[%emt 0:02:43]} 27. Rad1 {[%emt 0:00:21]} Qf2+ {[%emt 0:06:41]} 28. Kh1 {[%emt 0:00:04]} Rd2 {[%emt 0:01:25]} 29. h3 {[%emt 0:05:29]} Rxd1 {[%emt 0:00:44]} 30. Rxd1 {[%emt 0:00:06]} Qc2 {[%emt 0:00:26]} 31. Rd7 {[%emt 0:01:25]} Qxc3 {[%emt 0:00:25]} 32. Rxa7 {[%emt 0:01:46]} 1/2-1/2

[Event "XII Cracow ICC-A 2024"]
[Site "Krakow"]
[Date "2024.06.26"]
[Round "6.24"]
[White "Eliseev, Sergey"]
[Black "Berin, Artem"]
[Result "1/2-1/2"]
[ECO "C07"]
[WhiteElo "2296"]
[BlackElo "2234"]
[Annotator "RC"]
[PlyCount "178"]
[EventDate "2024.06.20"]
[EventType "swiss"]
[EventCountry "POL"]
[SourceTitle "playchess.com"]
[Source "ChessBase"]
[SourceQuality "1"]
[TimeControl "40/5400+30:1800+30"]

1. e4 {[%emt 0:04:20]} e6 {[%emt 0:00:18]} 2. d4 {[%emt 0:00:07]} d5 {[%emt 0:00:05]} 3. Nd2 {[%emt 0:00:14]} c5 {[%emt 0:00:18]} 4. exd5 {[%emt 0:00:07]} Qxd5 {[%emt 0:00:07]} 5. dxc5 {[%emt 0:00:06]} Qxc5 {[%emt 0:03:28]} 6. Ngf3 {[%emt 0:00:42]} Nf6 {[%emt 0:00:20]} 7. Bd3 {[%emt 0:00:15]} Be7 {[%emt 0:00:32]} 8. Qe2 {[%emt 0:00:42]} Nbd7 {[%emt 0:00:30]} 9. O-O {[%emt 0:00:40]} O-O {[%emt 0:00:20]} 10. c4 {[%emt 0:00:43]} Qc7 {[%emt 0:09:03]} 11. Ne4 {[%emt 0:00:56]} b6 {[%emt 0:01:47]} 12. Nxf6+ {[%emt 0:00:12]} Nxf6 {[%emt 0:00:07]} 13. b3 {[%emt 0:02:17]} Bb7 {[%emt 0:05:12]} 14. Ne5 {[%emt 0:00:17]} Nd7 {[%emt 0:02:36]} 15. Nxd7 {[%emt 0:00:11]} Qxd7 {[%emt 0:00:07]} 16. Bb2 {[%emt 0:02:27]} Rfd8 {[%emt 0:08:44]} 17. Be4 {[%emt 0:20:21]} Qd2 {[%emt 0:15:25]} 18. Qxd2 {[%emt 0:01:15]} Rxd2 {[%emt 0:00:06]} 19. Bc3 {[%emt 0:00:13]} Rd7 {[%emt 0:00:24]} 20. Bxb7 {[%emt 0:05:33]} Rxb7 {[%emt 0:00:08]} 21. Rfd1 {[%emt 0:10:46]} f6 {[%emt 0:01:11]} 22. a4 {[%emt 0:02:04]} a5 {[%emt 0:02:46]} 23. f4 {[%emt 0:07:43]} Kf7 {[%emt 0:01:44]} 24. Rd3 {[%emt 0:05:58]} Rd8 {[%emt 0:00:56]} 25. Rxd8 {[%emt 0:01:12]} Bxd8 {[%emt 0:00:07]} 26. Rd1 {[%emt 0:00:14]} Be7 {[%emt 0:00:48]} 27. Rd3 {[%emt 0:03:34]} Bc5+ {[%emt 0:01:43]} 28. Kf1 {[%emt 0:00:01]} Ke8 {[%emt 0:01:31]} 29. Rh3 {[%emt 0:02:07]} h6 {[%emt 0:01:02]} 30. Ke2 {[%emt 0:04:39]} Rd7 {[%emt 0:03:09]} 31. g4 {[%emt 0:03:23]} Kf7 {[%emt 0:01:45]} 32. Rh5 {[%emt 0:04:13]} Rc7 {[%emt 0:03:04]} 33. Rh3 {[%emt 0:04:37]} Rd7 {[%emt 0:00:16]} 34. Rf3 {[%emt 0:01:07]} f5 {[%emt 0:03:07]} 35. Rg3 {[%emt 0:07:21]} g6 {[%emt 0:00:54]} 36. h3 {[%emt 0:06:12]} Rd8 {[%emt 0:02:06]} 37. Rf3 {[%emt 0:00:46]} Rd7 {[%emt 0:00:32]} 38. Rf1 {[%emt 0:00:18]} Ke8 {[%emt 0:03:12]} 39. Rf3 {[%emt 0:00:54]} Kf7 {[%emt 0:00:13]} 40. Rg3 {[%emt 0:00:42]} Rd8 {[%emt 0:00:16]} 41. h4 {[%emt 0:11:10]} fxg4 {[%emt 0:05:53]} 42. Rxg4 {[%emt 0:00:01]} h5 {[%emt 0:00:09]} 43. Rg5 {[%emt 0:00:51]} Rc8 {[%emt 0:00:37]} 44. Be1 {[%emt 0:01:31]} Rc6 {[%emt 0:02:01]} 45. Re5 {[%emt 0:01:11]} Bd6 {[%emt 0:04:20]} 46. Re4 {[%emt 0:01:09]} Kf6 {[%emt 0:04:55]} 47. Kf3 {[%emt 0:01:01]} Kf7 {[%emt 0:00:42]} 48. Re3 {[%emt 0:03:48]} Kf6 {[%emt 0:01:31]} 49. Bc3+ {[%emt 0:01:43]} Kf7 {[%emt 0:00:08]} 50. Be5 {[%emt 0:01:27]} Be7 {[%emt 0:00:19]} 51. Kg3 {[%emt 0:00:08]} Kf8 {[%emt 0:02:00]} 52. Bc3 {[%emt 0:01:58]} Bd6 {[%emt 0:01:23]} 53. Rd3 {[%emt 0:00:53]} Ke8 {[%emt 0:01:03]} 54. Bf6 {[%emt 0:01:24]} Bc7 {[%emt 0:02:06]} 55. Kf3 {[%emt 0:01:59]} Bd6 {[%emt 0:00:28]} 56. Kg3 {[%emt 0:03:51]} Bc7 {[%emt 0:00:10]} 57. Be5 {[%emt 0:00:43]} Bd8 {[%emt 0:00:34]} 58. Bd6 {[%emt 0:03:18]} Bf6 {[%emt 0:00:27]} 59. Ba3 {[%emt 0:00:41]} Bd8 {[%emt 0:00:21]} 60. Bb2 {[%emt 0:00:54]} Be7 {[%emt 0:00:38]} 61. Bc3 {[%emt 0:00:01]} Bd6 {[%emt 0:00:33]} 62. Bd4 {[%emt 0:00:23]} Be7 {[%emt 0:00:42]} 63. Bf2 {[%emt 0:00:05]} Bd6 {[%emt 0:01:17]} 64. Kf3 {[%emt 0:00:02]} Be7 {[%emt 0:00:29]} 65. Ke4 {[%emt 0:00:06]} Bd6 {[%emt 0:00:19]} 66. Rg3 {[%emt 0:00:29]} Kf7 {[%emt 0:02:40]} 67. Rg5 {[%emt 0:00:01]} Bc5 {[%emt 0:09:30]} 68. Bd4 {[%emt 0:01:33]} Be7 {[%emt 0:04:00]} 69. Rb5 {[%emt 0:00:07]} Bd8 {[%emt 0:00:04]} 70. Kf3 {[%emt 0:01:23]} Rd6 {[%emt 0:01:21]} 71. Bf2 {[%emt 0:00:16]} Ke8 {[%emt 0:00:55]} 72. Ke2 {[%emt 0:01:00]} Kd7 {[%emt 0:00:51]} 73. Re5 {[%emt 0:01:02]} Bf6 {[%emt 0:00:17]} 74. Rb5 {[%emt 0:00:55]} Bd8 {[%emt 0:00:06]} 75. c5 {[%emt 0:00:31]} bxc5 {[%emt 0:00:05]} 76. Rb7+ {[%emt 0:00:53]} Kc6 {[%emt 0:00:45]} 77. Rg7 {[%emt 0:00:28]} e5 {[%emt 0:02:11]} 78. fxe5 {[%emt 0:00:06]} Re6 {[%emt 0:00:06]} 79. Bg3 {[%emt 0:00:44]} Bc7 {[%emt 0:00:20]} 80. Kd3 {[%emt 0:00:16]} Bxe5 {[%emt 0:03:33]} 81. Bxe5 {[%emt 0:00:04]} Rxe5 {[%emt 0:00:04]} 82. Rxg6+ {[%emt 0:00:07]} Kd5 {[%emt 0:00:38]} 83. Ra6 {[%emt 0:00:39]} Re4 {[%emt 0:03:10]} 84. Rd6+ {[%emt 0:01:19]} Kxd6 {[%emt 0:00:06]} 85. Kxe4 {[%emt 0:00:01]} Ke6 {[%emt 0:00:07]} 86. Kd3 {[%emt 0:00:36]} Kd5 {[%emt 0:00:22]} 87. Kc3 {[%emt 0:00:09]} Kd6 {[%emt 0:00:20]} 88. Kd2 {[%emt 0:00:36]} Kd5 {[%emt 0:00:12]} 89. Kd3 {[%emt 0:00:20]} Kd6 {[%emt 0:00:06]} 1/2-1/2